[Event "Late-Titled-Tuesday-Blitz-April-23-2024"]
[Site "Chess.com"]
[Date "2024.04.23"]
[Round "1"]
[White "DuleMudule"]
[Black "kylelancman"]
[Result "1-0"]
[WhiteElo "2819"]
[BlackElo "2478"]
[TimeControl "180+1"]
[EndTime "14:08:44 PDT"]
[Termination "DuleMudule won by resignation"]

1. d4 {[%clk 0:03:00.9]} 1... d5 {[%clk 0:02:59.4]} 2. Bg5 {[%clk 0:03:00.3]}
2... f6 {[%clk 0:02:55]} 3. Bh4 {[%clk 0:02:59.1]} 3... Nh6 {[%clk 0:02:54.8]}
4. e3 {[%clk 0:02:58.8]} 4... Nf5 {[%clk 0:02:53.2]} 5. Bd3 {[%clk 0:02:59.4]}
5... Be6 {[%clk 0:02:42]} 6. Bg3 {[%clk 0:02:41.9]} 6... Nd7 {[%clk 0:02:30.8]}
7. c3 {[%clk 0:02:37.8]} 7... g6 {[%clk 0:02:27.4]} 8. Nd2 {[%clk 0:02:31.4]}
8... Bg7 {[%clk 0:02:25.1]} 9. e4 {[%clk 0:02:30.7]} 9... dxe4 {[%clk
0:02:23.7]} 10. Nxe4 {[%clk 0:02:31.2]} 10... c5 {[%clk 0:02:13.4]} 11. dxc5
{[%clk 0:02:26.5]} 11... Qc8 {[%clk 0:02:11.3]} 12. b4 {[%clk 0:02:25.2]} 12...
Nxg3 {[%clk 0:02:04.8]} 13. hxg3 {[%clk 0:02:23.7]} 13... f5 {[%clk 0:02:04.5]}
14. Ng5 {[%clk 0:02:09.7]} 14... Bxc3+ {[%clk 0:01:59.2]} 15. Kf1 {[%clk
0:02:09.2]} 15... Bg8 {[%clk 0:01:57.1]} 16. Rb1 {[%clk 0:02:06.6]} 16... Qc7
{[%clk 0:01:46.1]} 17. Ne2 {[%clk 0:02:02.7]} 17... Bf6 {[%clk 0:01:45.3]} 18.
Nf3 {[%clk 0:02:02]} 18... e5 {[%clk 0:01:43.6]} 19. Bb5 {[%clk 0:01:58.7]}
19... O-O-O {[%clk 0:01:40.5]} 20. Qc2 {[%clk 0:01:56]} 20... a6 {[%clk
0:01:30]} 21. Bc4 {[%clk 0:01:54.9]} 21... Bxc4 {[%clk 0:01:25]} 22. Qxc4 {[%clk
0:01:55.8]} 22... Kb8 {[%clk 0:01:17.9]} 23. Qf7 {[%clk 0:01:19.6]} 23... Rdf8
{[%clk 0:01:15.1]} 24. Qb3 {[%clk 0:01:16.2]} 24... Rd8 {[%clk 0:01:10.5]} 25.
Nc3 {[%clk 0:01:15.7]} 25... Qc6 {[%clk 0:01:05.6]} 26. Nd5 {[%clk 0:01:07.5]}
26... e4 {[%clk 0:01:04.4]} 27. Nxf6 {[%clk 0:01:00.9]} 27... Qxf6 {[%clk
0:01:03.2]} 28. Ne1 {[%clk 0:00:57]} 28... Ne5 {[%clk 0:01:01.6]} 29. b5 {[%clk
0:00:53.9]} 29... axb5 {[%clk 0:01:00]} 30. Qxb5 {[%clk 0:00:54.8]} 30... Qc6
{[%clk 0:00:58.9]} 31. Qb3 {[%clk 0:00:49.2]} 31... Rd2 {[%clk 0:00:52.5]} 32.
Qc3 {[%clk 0:00:45.9]} 32... Rd5 {[%clk 0:00:48.6]} 33. Nc2 {[%clk 0:00:44.7]}
33... Rxc5 {[%clk 0:00:45.3]} 34. Qb2 {[%clk 0:00:44.7]} 34... Rd8 {[%clk
0:00:41.2]} 35. Rxh7 {[%clk 0:00:39.2]} 35... Rd7 {[%clk 0:00:20.6]} 36. Rh8+
{[%clk 0:00:37.8]} 36... Ka7 {[%clk 0:00:19.1]} 37. Nd4 {[%clk 0:00:36]} 37...
Qa6+ {[%clk 0:00:18.6]} 38. Nb5+ {[%clk 0:00:35.8]} 38... Kb6 {[%clk 0:00:17.1]}
39. Kg1 {[%clk 0:00:35.4]} 39... Nc4 {[%clk 0:00:15.4]} 40. Qf6+ {[%clk
0:00:33.2]} 40... Rc6 {[%clk 0:00:15.3]} 41. Nd4+ {[%clk 0:00:29.7]} 41... Kc5
{[%clk 0:00:13.9]} 42. Nxc6 {[%clk 0:00:29.3]} 42... Qxc6 {[%clk 0:00:14.3]} 43.
Qf8+ {[%clk 0:00:28.1]} 43... Qd6 {[%clk 0:00:10.8]} 44. Qg8 {[%clk 0:00:20.6]}
44... e3 {[%clk 0:00:09.1]} 45. fxe3 {[%clk 0:00:18.3]} 45... Qxg3 {[%clk
0:00:08.9]} 46. Qf8+ {[%clk 0:00:17]} 46... Qd6 {[%clk 0:00:06.7]} 47. Qe8
{[%clk 0:00:15.7]} 47... Qd3 {[%clk 0:00:06.6]} 48. Rc1 {[%clk 0:00:15]} 48...
b5 {[%clk 0:00:05.7]} 49. Qc8+ {[%clk 0:00:14.8]} 49... Kd5 {[%clk 0:00:05.7]}
50. Qa8+ {[%clk 0:00:14]} 50... Kc5 {[%clk 0:00:05.5]} 51. Rc8+ {[%clk
0:00:13.4]} 51... Kb4 {[%clk 0:00:05.5]} 52. a3+ {[%clk 0:00:13.1]} 52... Kb3
{[%clk 0:00:05.5]} 53. Re1 {[%clk 0:00:13.5]} 53... Qd2 {[%clk 0:00:05.5]} 54.
Kf1 {[%clk 0:00:09.4]} 54... Nxe3+ {[%clk 0:00:03.9]} 55. Rxe3+ {[%clk
0:00:09.5]} 55... Qxe3 {[%clk 0:00:04.5]} 56. Qf3 {[%clk 0:00:06.7]} 56... Qxf3+
{[%clk 0:00:03.6]} 57. gxf3 {[%clk 0:00:07.6]} 57... Kxa3 {[%clk 0:00:04.1]} 58.
Ke2 {[%clk 0:00:07]} 58... Rd6 {[%clk 0:00:04]} 59. Rb8 {[%clk 0:00:05.8]} 59...
b4 {[%clk 0:00:04.3]} 60. Ra8+ {[%clk 0:00:05]} 60... Kb2 {[%clk 0:00:04.7]} 61.
Ra6 {[%clk 0:00:02.4]} 61... b3 {[%clk 0:00:05.1]} 62. Rxd6 {[%clk 0:00:01.5]}
62... Ka2 {[%clk 0:00:05.6]} 63. Rxg6 {[%clk 0:00:02.1]} 63... b2 {[%clk
0:00:05.6]} 64. Ra6+ {[%clk 0:00:02.8]} 64... Kb3 {[%clk 0:00:06]} 65. Rb6+
{[%clk 0:00:02.3]} 65... Kc2 {[%clk 0:00:06.1]} 66. Ke3 {[%clk 0:00:03.2]} 66...
b1=Q {[%clk 0:00:06.4]} 67. Rxb1 {[%clk 0:00:03.3]} 67... Kxb1 {[%clk
0:00:04.6]} 68. Kf4 {[%clk 0:00:04.2]} 68... Kc2 {[%clk 0:00:05.5]} 69. Kxf5
{[%clk 0:00:04.8]} 69... Kd3 {[%clk 0:00:06.4]} 70. f4 {[%clk 0:00:05.3]} 1-0

[Event "Late-Titled-Tuesday-Blitz-April-23-2024"]
[Site "Chess.com"]
[Date "2024.04.23"]
[Round "1"]
[White "Evan_Attaker"]
[Black "expii"]
[Result "1/2-1/2"]
[WhiteElo "2575"]
[BlackElo "2188"]
[TimeControl "180+1"]
[EndTime "14:08:51 PDT"]
[Termination "Game drawn by agreement"]

1. Nf3 {[%clk 0:02:59.6]} 1... d5 {[%clk 0:02:58.9]} 2. c4 {[%clk 0:02:57.1]}
2... e6 {[%clk 0:02:52.1]} 3. g3 {[%clk 0:02:57]} 3... c5 {[%clk 0:02:46.5]} 4.
cxd5 {[%clk 0:02:56.2]} 4... exd5 {[%clk 0:02:46.2]} 5. Bg2 {[%clk 0:02:44.9]}
5... Nf6 {[%clk 0:02:43.2]} 6. O-O {[%clk 0:02:44.9]} 6... Nc6 {[%clk
0:02:37.9]} 7. d4 {[%clk 0:02:43.6]} 7... c4 {[%clk 0:02:36.8]} 8. Nc3 {[%clk
0:02:34.1]} 8... Be6 {[%clk 0:02:22.9]} 9. Ne5 {[%clk 0:02:33]} 9... Be7 {[%clk
0:02:07.3]} 10. b3 {[%clk 0:02:29.3]} 10... cxb3 {[%clk 0:02:03.6]} 11. Nxc6
{[%clk 0:02:14.2]} 11... bxc6 {[%clk 0:01:57.5]} 12. axb3 {[%clk 0:02:14.7]}
12... O-O {[%clk 0:01:46.5]} 13. Ba3 {[%clk 0:02:13.5]} 13... Bxa3 {[%clk
0:01:45.5]} 14. Rxa3 {[%clk 0:02:14.4]} 14... Qd6 {[%clk 0:01:44.1]} 15. Ra4
{[%clk 0:01:45]} 15... Rfb8 {[%clk 0:01:31.9]} 16. Qc2 {[%clk 0:01:44.4]} 16...
Rb6 {[%clk 0:01:30.1]} 17. Rfa1 {[%clk 0:01:43.5]} 17... Qc7 {[%clk 0:01:20.7]}
18. R4a3 {[%clk 0:01:25]} 18... Rb7 {[%clk 0:01:15.2]} 19. Na4 {[%clk
0:01:23.8]} 19... Nd7 {[%clk 0:01:11.9]} 20. Nc5 {[%clk 0:01:23.6]} 20... Nxc5
{[%clk 0:01:09.1]} 21. Qxc5 {[%clk 0:01:24.5]} 21... h6 {[%clk 0:00:58.2]} 22.
h4 {[%clk 0:01:22.4]} 22... a5 {[%clk 0:00:49.7]} 23. Rxa5 {[%clk 0:00:47.6]}
23... Rxa5 {[%clk 0:00:46.6]} 24. Rxa5 {[%clk 0:00:48.5]} 24... Rxb3 {[%clk
0:00:45.7]} 25. e4 {[%clk 0:00:32.5]} 25... Rb1+ {[%clk 0:00:44.4]} 26. Kh2
{[%clk 0:00:32.2]} 26... dxe4 {[%clk 0:00:29.1]} 27. Bxe4 {[%clk 0:00:32.7]}
27... Rb8 {[%clk 0:00:27.8]} 28. Ra7 {[%clk 0:00:28.7]} 28... Qd8 {[%clk
0:00:19.1]} 29. Bxc6 {[%clk 0:00:23.6]} 29... Rc8 {[%clk 0:00:19.3]} 30. d5
{[%clk 0:00:23.6]} 30... Bd7 {[%clk 0:00:18.7]} 31. Qd6 {[%clk 0:00:19.3]} 31...
Bxc6 {[%clk 0:00:16]} 32. Qxd8+ {[%clk 0:00:19.6]} 32... Rxd8 {[%clk 0:00:16.9]}
33. dxc6 {[%clk 0:00:20.1]} 33... Rc8 {[%clk 0:00:16.7]} 34. c7 {[%clk
0:00:20.6]} 34... Kf8 {[%clk 0:00:16.4]} 35. Kh3 {[%clk 0:00:20.6]} 35... Ke7
{[%clk 0:00:16.5]} 36. Kg4 {[%clk 0:00:21.1]} 36... Kd7 {[%clk 0:00:16.8]} 37.
Ra4 {[%clk 0:00:13.1]} 37... Rxc7 {[%clk 0:00:12.6]} 38. Re4 {[%clk 0:00:13.6]}
38... Rc6 {[%clk 0:00:12]} 39. f4 {[%clk 0:00:10.6]} 39... Rc5 {[%clk
0:00:11.4]} 40. f5 {[%clk 0:00:09.7]} 40... g6 {[%clk 0:00:09.2]} 41. Rf4 {[%clk
0:00:10]} 41... Ke7 {[%clk 0:00:06.9]} 42. h5 {[%clk 0:00:10.2]} 42... gxf5+
{[%clk 0:00:06.1]} 43. Rxf5 {[%clk 0:00:11.1]} 43... Rc4+ {[%clk 0:00:06.5]} 44.
Rf4 {[%clk 0:00:11.3]} 44... Rc5 {[%clk 0:00:06.9]} 45. Rf5 {[%clk 0:00:11]}
45... Rc4+ {[%clk 0:00:07.3]} 46. Kh3 {[%clk 0:00:11.3]} 46... Ke6 {[%clk
0:00:07.5]} 47. g4 {[%clk 0:00:11.9]} 47... Rc3+ {[%clk 0:00:07.4]} 48. Kh4
{[%clk 0:00:12.4]} 48... Rc1 {[%clk 0:00:07.7]} 49. Ra5 {[%clk 0:00:12.9]} 49...
Rh1+ {[%clk 0:00:07.6]} 50. Kg3 {[%clk 0:00:13.4]} 50... Rg1+ {[%clk 0:00:07.8]}
51. Kh3 {[%clk 0:00:13.7]} 51... Rh1+ {[%clk 0:00:07.9]} 52. Kg2 {[%clk
0:00:14.2]} 52... Rd1 {[%clk 0:00:07.7]} 53. Ra6+ {[%clk 0:00:14.6]} 53... Rd6
{[%clk 0:00:08]} 54. Ra5 {[%clk 0:00:13.7]} 54... Kf6 {[%clk 0:00:07.1]} 55. Kf3
{[%clk 0:00:13.8]} 55... Kg7 {[%clk 0:00:07.4]} 56. Kf4 {[%clk 0:00:14.3]} 56...
Rb6 {[%clk 0:00:07.7]} 57. Ra4 {[%clk 0:00:14.5]} 57... Rf6+ {[%clk 0:00:07.9]}
58. Kg3 {[%clk 0:00:14.6]} 58... Rb6 {[%clk 0:00:08.2]} 59. Ra2 {[%clk
0:00:14.4]} 59... Rf6 {[%clk 0:00:08.4]} 60. Rf2 {[%clk 0:00:14.7]} 60... Re6
{[%clk 0:00:08.5]} 61. Rf3 {[%clk 0:00:14.5]} 61... Rd6 {[%clk 0:00:08.8]} 62.
Rf4 {[%clk 0:00:14.1]} 62... Rc6 {[%clk 0:00:09.2]} 63. Re4 {[%clk 0:00:14.6]}
63... Rb6 {[%clk 0:00:09.6]} 64. Kf4 {[%clk 0:00:15.2]} 64... Rf6+ {[%clk
0:00:09.7]} 65. Ke3 {[%clk 0:00:15.8]} 65... Rc6 {[%clk 0:00:10.2]} 66. Re5
{[%clk 0:00:16.4]} 66... Rb6 {[%clk 0:00:10.7]} 67. Kf4 {[%clk 0:00:17.1]} 67...
Rb4+ {[%clk 0:00:10.6]} 68. Kf5 {[%clk 0:00:17.4]} 68... Rb6 {[%clk 0:00:10.7]}
69. Rd5 {[%clk 0:00:17.3]} 69... Rf6+ {[%clk 0:00:10.9]} 70. Ke4 {[%clk
0:00:17.9]} 70... Re6+ {[%clk 0:00:11.4]} 71. Re5 {[%clk 0:00:18.4]} 71... Rb6
{[%clk 0:00:11.6]} 72. g5 {[%clk 0:00:19]} 72... hxg5 {[%clk 0:00:11.5]} 73.
Rxg5+ {[%clk 0:00:19.2]} 73... Kh6 {[%clk 0:00:12.1]} 74. Rf5 {[%clk 0:00:19.8]}
74... Rb4+ {[%clk 0:00:11.8]} 75. Kf3 {[%clk 0:00:20.2]} 75... Rb3+ {[%clk
0:00:12.2]} 76. Ke2 {[%clk 0:00:20.7]} 76... Rb2+ {[%clk 0:00:12.6]} 77. Kd3
{[%clk 0:00:21.3]} 77... Rb3+ {[%clk 0:00:12.9]} 78. Kc4 {[%clk 0:00:21.8]}
78... Rh3 {[%clk 0:00:13.2]} 79. Rxf7 {[%clk 0:00:21.4]} 79... Rxh5 {[%clk
0:00:13.5]} 80. Rf8 {[%clk 0:00:21.8]} 80... Kg6 {[%clk 0:00:13.9]} 81. Kd4
{[%clk 0:00:21.7]} 81... Rh4+ {[%clk 0:00:13.6]} 82. Ke5 {[%clk 0:00:21.9]}
82... Rh7 {[%clk 0:00:12.6]} 83. Rf1 {[%clk 0:00:21.4]} 83... Re7+ {[%clk
0:00:12.5]} 84. Kd6 {[%clk 0:00:21.6]} 84... Re2 {[%clk 0:00:12.1]} 85. Rg1+
{[%clk 0:00:22.1]} 85... Kh5 {[%clk 0:00:12.4]} 86. Kd5 {[%clk 0:00:22]} 86...
Kh6 {[%clk 0:00:12.4]} 87. Kd4 {[%clk 0:00:22.2]} 87... Kh5 {[%clk 0:00:12.9]}
1/2-1/2

[Event "Late-Titled-Tuesday-Blitz-April-23-2024"]
[Site "Chess.com"]
[Date "2024.04.23"]
[Round "1"]
[White "Akhayan"]
[Black "Hamisandwich"]
[Result "0-1"]
[WhiteElo "2417"]
[BlackElo "2725"]
[TimeControl "180+1"]
[EndTime "14:08:56 PDT"]
[Termination "Hamisandwich won on time"]

1. e4 {[%clk 0:02:58.9]} 1... e5 {[%clk 0:03:00]} 2. Bc4 {[%clk 0:02:57]} 2...
Nf6 {[%clk 0:02:56.7]} 3. d3 {[%clk 0:02:57.1]} 3... c6 {[%clk 0:02:57]} 4. Nf3
{[%clk 0:02:56.8]} 4... d5 {[%clk 0:02:55.5]} 5. Bb3 {[%clk 0:02:56.9]} 5...
Bb4+ {[%clk 0:02:55.1]} 6. c3 {[%clk 0:02:56.4]} 6... Bd6 {[%clk 0:02:54.1]} 7.
exd5 {[%clk 0:02:56.4]} 7... cxd5 {[%clk 0:02:52.3]} 8. O-O {[%clk 0:02:56.3]}
8... O-O {[%clk 0:02:49.4]} 9. Re1 {[%clk 0:02:56.8]} 9... Nc6 {[%clk
0:02:41.2]} 10. Bg5 {[%clk 0:02:56.2]} 10... Be6 {[%clk 0:02:40]} 11. Nbd2
{[%clk 0:02:54.7]} 11... h6 {[%clk 0:02:37.7]} 12. Bh4 {[%clk 0:02:54.4]} 12...
Re8 {[%clk 0:02:34.7]} 13. Bg3 {[%clk 0:02:49]} 13... Qc7 {[%clk 0:02:29.1]} 14.
Ba4 {[%clk 0:02:46.5]} 14... Bf5 {[%clk 0:02:26]} 15. d4 {[%clk 0:02:43.5]}
15... e4 {[%clk 0:02:19.5]} 16. Bxd6 {[%clk 0:02:40.1]} 16... Qxd6 {[%clk
0:02:18.9]} 17. Ne5 {[%clk 0:02:35.1]} 17... Nxe5 {[%clk 0:02:19.2]} 18. dxe5
{[%clk 0:02:20.5]} 18... Qxe5 {[%clk 0:02:06.7]} 19. Bxe8 {[%clk 0:02:18.6]}
19... Rxe8 {[%clk 0:02:07.6]} 20. Nf1 {[%clk 0:02:11.1]} 20... Rc8 {[%clk
0:01:48.9]} 21. Qd2 {[%clk 0:02:02.8]} 21... Be6 {[%clk 0:01:38.6]} 22. Rad1
{[%clk 0:01:53.9]} 22... b6 {[%clk 0:01:34.2]} 23. a3 {[%clk 0:01:51.7]} 23...
h5 {[%clk 0:01:33.8]} 24. Qe3 {[%clk 0:01:41.4]} 24... h4 {[%clk 0:01:31]} 25.
Qd4 {[%clk 0:01:32.1]} 25... Qg5 {[%clk 0:01:30.3]} 26. Qe3 {[%clk 0:01:28.1]}
26... Qf5 {[%clk 0:01:30.8]} 27. h3 {[%clk 0:01:20.9]} 27... Nh5 {[%clk
0:01:07.9]} 28. f3 {[%clk 0:00:52.9]} 28... Nf6 {[%clk 0:01:07.4]} 29. Nd2
{[%clk 0:00:47.2]} 29... exf3 {[%clk 0:00:52.4]} 30. Qxf3 {[%clk 0:00:46.5]}
30... Qg5 {[%clk 0:00:48.2]} 31. Qe3 {[%clk 0:00:44.2]} 31... Qh5 {[%clk
0:00:37.6]} 32. Qf3 {[%clk 0:00:42.3]} 32... Qg6 {[%clk 0:00:33.4]} 33. Kh1
{[%clk 0:00:38.2]} 33... Nh5 {[%clk 0:00:26.5]} 34. Nf1 {[%clk 0:00:36.8]} 34...
Rc4 {[%clk 0:00:23.8]} 35. Rd4 {[%clk 0:00:35.7]} 35... Rxd4 {[%clk 0:00:21.8]}
36. cxd4 {[%clk 0:00:36]} 36... Nf6 {[%clk 0:00:21]} 37. Nd2 {[%clk 0:00:30.1]}
37... Bf5 {[%clk 0:00:20.4]} 38. Qf4 {[%clk 0:00:28.1]} 38... Qh5 {[%clk
0:00:18.2]} 39. Rf1 {[%clk 0:00:21.6]} 39... Be4 {[%clk 0:00:17]} 40. Nxe4
{[%clk 0:00:20.6]} 40... dxe4 {[%clk 0:00:17.8]} 41. Kh2 {[%clk 0:00:19.8]}
41... Qd5 {[%clk 0:00:14.8]} 42. Qe3 {[%clk 0:00:18.4]} 42... Qd6+ {[%clk
0:00:13.4]} 43. Qf4 {[%clk 0:00:16.9]} 43... Qxd4 {[%clk 0:00:13.1]} 44. Re1
{[%clk 0:00:13.3]} 44... Qxb2 {[%clk 0:00:11.3]} 45. Qxh4 {[%clk 0:00:09.7]}
45... Qxa3 {[%clk 0:00:11.6]} 46. Qf4 {[%clk 0:00:10]} 46... Qe7 {[%clk
0:00:11.7]} 47. Qb8+ {[%clk 0:00:09.5]} 47... Kh7 {[%clk 0:00:11.3]} 48. Qf4
{[%clk 0:00:08.9]} 48... g6 {[%clk 0:00:09.3]} 49. Qh4+ {[%clk 0:00:09.3]} 49...
Kg7 {[%clk 0:00:09.5]} 50. Qg3 {[%clk 0:00:07.7]} 50... b5 {[%clk 0:00:09.3]}
51. Qc3 {[%clk 0:00:08.2]} 51... b4 {[%clk 0:00:08.7]} 52. Qb2 {[%clk
0:00:07.7]} 52... a5 {[%clk 0:00:09]} 53. Rf1 {[%clk 0:00:08.3]} 53... Qd6+
{[%clk 0:00:08.6]} 54. Kh1 {[%clk 0:00:08.3]} 54... a4 {[%clk 0:00:09]} 55. g4
{[%clk 0:00:08.2]} 55... a3 {[%clk 0:00:09.6]} 56. Qa1 {[%clk 0:00:07.6]} 56...
g5 {[%clk 0:00:09.8]} 57. h4 {[%clk 0:00:07.6]} 57... Kg6 {[%clk 0:00:04.1]} 58.
hxg5 {[%clk 0:00:07.2]} 58... Kxg5 {[%clk 0:00:04.3]} 59. Qc1+ {[%clk
0:00:07.5]} 59... Kg6 {[%clk 0:00:04.7]} 60. Qe3 {[%clk 0:00:04.8]} 60... Qd3
{[%clk 0:00:04]} 61. Qf2 {[%clk 0:00:04.4]} 61... Qh3+ {[%clk 0:00:04.3]} 62.
Kg1 {[%clk 0:00:04.3]} 62... Qxg4+ {[%clk 0:00:05]} 63. Kh1 {[%clk 0:00:04.6]}
63... Qh5+ {[%clk 0:00:05.6]} 64. Kg1 {[%clk 0:00:04.9]} 64... Qg5+ {[%clk
0:00:06.1]} 65. Kh1 {[%clk 0:00:05.4]} 65... Qh6+ {[%clk 0:00:06.4]} 66. Kg1
{[%clk 0:00:05.9]} 66... Kg7 {[%clk 0:00:07]} 67. Qd4 {[%clk 0:00:02.1]} 67...
Qg5+ {[%clk 0:00:07.2]} 68. Kh1 {[%clk 0:00:02.5]} 68... Qh4+ {[%clk 0:00:07.5]}
69. Kg1 {[%clk 0:00:02.9]} 69... Kg6 {[%clk 0:00:07.2]} 70. Rf2 {[%clk
0:00:02.4]} 70... Ng4 {[%clk 0:00:05.7]} 71. Rg2 {[%clk 0:00:02.8]} 71... f5
{[%clk 0:00:05.1]} 72. Qd6+ {[%clk 0:00:02.1]} 72... Qf6 {[%clk 0:00:05.1]} 73.
Qf4 {[%clk 0:00:01.8]} 73... Qb6+ {[%clk 0:00:04]} 74. Kh1 {[%clk 0:00:01.7]}
74... Qf6 {[%clk 0:00:03.9]} 75. Kg1 {[%clk 0:00:01.4]} 75... Qa1+ {[%clk
0:00:03.7]} 0-1

[Event "Late-Titled-Tuesday-Blitz-April-23-2024"]
[Site "Chess.com"]
[Date "2024.04.23"]
[Round "1"]
[White "Smoking_Crow"]
[Black "leschebaza"]
[Result "0-1"]
[WhiteElo "2610"]
[BlackElo "2312"]
[TimeControl "180+1"]
[EndTime "14:09:01 PDT"]
[Termination "leschebaza won by checkmate"]

1. e4 {[%clk 0:03:00.9]} 1... e6 {[%clk 0:02:51.8]} 2. d4 {[%clk 0:03:00.5]}
2... d5 {[%clk 0:02:51]} 3. Nd2 {[%clk 0:03:01.1]} 3... c5 {[%clk 0:02:49.7]} 4.
exd5 {[%clk 0:03:01.1]} 4... Qxd5 {[%clk 0:02:50.6]} 5. Ngf3 {[%clk 0:03:01.9]}
5... cxd4 {[%clk 0:02:50.3]} 6. Bc4 {[%clk 0:03:02.8]} 6... Qd6 {[%clk
0:02:50.3]} 7. O-O {[%clk 0:03:03.7]} 7... Nf6 {[%clk 0:02:47.1]} 8. Nb3 {[%clk
0:03:04.4]} 8... Nc6 {[%clk 0:02:46.6]} 9. Nbxd4 {[%clk 0:03:05]} 9... Nxd4
{[%clk 0:02:46.6]} 10. Nxd4 {[%clk 0:03:05.9]} 10... Qc7 {[%clk 0:02:42.7]} 11.
Qe2 {[%clk 0:03:06.1]} 11... a6 {[%clk 0:02:41.7]} 12. Re1 {[%clk 0:03:05.6]}
12... Be7 {[%clk 0:02:39.5]} 13. Bg5 {[%clk 0:03:05.4]} 13... O-O {[%clk
0:02:36]} 14. Bh4 {[%clk 0:03:05.6]} 14... Re8 {[%clk 0:02:33.4]} 15. Bg3 {[%clk
0:03:05.7]} 15... Qb6 {[%clk 0:02:29.9]} 16. c3 {[%clk 0:03:06]} 16... Bd7
{[%clk 0:02:29]} 17. Rad1 {[%clk 0:03:05.5]} 17... Rad8 {[%clk 0:02:27.1]} 18.
Bd3 {[%clk 0:03:02.7]} 18... Bd6 {[%clk 0:02:15.3]} 19. Bxd6 {[%clk 0:02:57.6]}
19... Qxd6 {[%clk 0:02:16.2]} 20. Nf3 {[%clk 0:02:58.2]} 20... Qc7 {[%clk
0:02:14.2]} 21. Ne5 {[%clk 0:02:58]} 21... Bc6 {[%clk 0:02:13]} 22. Bc2 {[%clk
0:02:55.8]} 22... h6 {[%clk 0:02:09.6]} 23. h3 {[%clk 0:02:54.1]} 23... Bd5
{[%clk 0:02:06.3]} 24. c4 {[%clk 0:02:50.9]} 24... Bc6 {[%clk 0:02:05.3]} 25. b3
{[%clk 0:02:51]} 25... Rxd1 {[%clk 0:01:56.6]} 26. Rxd1 {[%clk 0:02:51.1]} 26...
Rd8 {[%clk 0:01:57.5]} 27. Re1 {[%clk 0:02:51.5]} 27... b5 {[%clk 0:01:48.8]}
28. Nxc6 {[%clk 0:02:40.3]} 28... Qxc6 {[%clk 0:01:48.7]} 29. cxb5 {[%clk
0:02:39.9]} 29... Qxb5 {[%clk 0:01:45.3]} 30. a4 {[%clk 0:02:30.9]} 30... Qb4
{[%clk 0:01:33.3]} 31. Rc1 {[%clk 0:02:25.2]} 31... a5 {[%clk 0:01:31.2]} 32.
Rd1 {[%clk 0:02:22.6]} 32... Rxd1+ {[%clk 0:01:22.2]} 33. Qxd1 {[%clk
0:02:23.5]} 33... Nd5 {[%clk 0:01:21.7]} 34. Bd3 {[%clk 0:02:16.4]} 34... g6
{[%clk 0:01:17.5]} 35. g3 {[%clk 0:02:14.4]} 35... Qd4 {[%clk 0:01:16.1]} 36.
Qe2 {[%clk 0:01:57.2]} 36... Nc3 {[%clk 0:01:12.2]} 37. Qc2 {[%clk 0:01:49.2]}
37... h5 {[%clk 0:01:07.8]} 38. h4 {[%clk 0:01:31.4]} 38... e5 {[%clk
0:01:05.7]} 39. Kh2 {[%clk 0:01:09.8]} 39... e4 {[%clk 0:01:01.3]} 40. Bc4
{[%clk 0:01:08.3]} 40... Kg7 {[%clk 0:00:53.2]} 41. Kg2 {[%clk 0:00:58.8]} 41...
e3 {[%clk 0:00:49.4]} 42. fxe3 {[%clk 0:00:56.1]} 42... Qxe3 {[%clk 0:00:50.3]}
43. Qb2 {[%clk 0:00:51.2]} 43... Qe4+ {[%clk 0:00:33.8]} 44. Kh2 {[%clk
0:00:50.1]} 44... Qd4 {[%clk 0:00:32.8]} 45. Bf1 {[%clk 0:00:47]} 45... f6
{[%clk 0:00:30.5]} 46. Qc2 {[%clk 0:00:39.5]} 46... Ne4 {[%clk 0:00:25.9]} 47.
Bg2 {[%clk 0:00:34.6]} 47... Nc3 {[%clk 0:00:20.2]} 48. Qb2 {[%clk 0:00:28.7]}
48... g5 {[%clk 0:00:19.5]} 49. hxg5 {[%clk 0:00:27.9]} 49... fxg5 {[%clk
0:00:20.4]} 50. Qc1 {[%clk 0:00:25.6]} 50... Kg6 {[%clk 0:00:19.1]} 51. Qc2+
{[%clk 0:00:24.8]} 51... Kh6 {[%clk 0:00:18.8]} 52. Qc1 {[%clk 0:00:23.6]} 52...
Qe5 {[%clk 0:00:18.5]} 53. Qf1 {[%clk 0:00:18.4]} 53... h4 {[%clk 0:00:14.7]}
54. Qf8+ {[%clk 0:00:18.2]} 54... Kg6 {[%clk 0:00:08.8]} 55. Qg8+ {[%clk
0:00:18.1]} 55... Kf6 {[%clk 0:00:06.8]} 56. Qf8+ {[%clk 0:00:16]} 56... Ke6
{[%clk 0:00:05.4]} 57. Qe8+ {[%clk 0:00:15]} 57... Kf6 {[%clk 0:00:05.6]} 58.
Qc6+ {[%clk 0:00:14.8]} 58... Kg7 {[%clk 0:00:05.3]} 59. Qb7+ {[%clk 0:00:13.6]}
59... Kh6 {[%clk 0:00:05.6]} 60. Qb6+ {[%clk 0:00:13.4]} 60... Kh5 {[%clk
0:00:05.6]} 61. Kh1 {[%clk 0:00:10]} 61... hxg3 {[%clk 0:00:05.1]} 62. Qg1
{[%clk 0:00:06.8]} 62... Ne2 {[%clk 0:00:04.6]} 63. Bf3+ {[%clk 0:00:06.2]}
63... g4 {[%clk 0:00:05]} 64. Bxe2 {[%clk 0:00:05.7]} 64... Qxe2 {[%clk
0:00:05.9]} 65. Qc5+ {[%clk 0:00:06.1]} 65... Kh4 {[%clk 0:00:05.6]} 66. Qg1
{[%clk 0:00:04.3]} 66... Qh2+ {[%clk 0:00:04.1]} 67. Qxh2+ {[%clk 0:00:04.5]}
67... gxh2 {[%clk 0:00:05]} 68. Kxh2 {[%clk 0:00:05.3]} 68... g3+ {[%clk
0:00:05.9]} 69. Kg2 {[%clk 0:00:05]} 69... Kg4 {[%clk 0:00:06.8]} 70. b4 {[%clk
0:00:03.3]} 70... axb4 {[%clk 0:00:06.8]} 71. a5 {[%clk 0:00:04.2]} 71... b3
{[%clk 0:00:07.7]} 72. a6 {[%clk 0:00:05.1]} 72... b2 {[%clk 0:00:08.6]} 73. a7
{[%clk 0:00:06]} 73... b1=Q {[%clk 0:00:08.7]} 74. a8=Q {[%clk 0:00:06.9]} 74...
Qc2+ {[%clk 0:00:09.5]} 75. Kf1 {[%clk 0:00:07]} 75... Qf2# {[%clk 0:00:09.9]}
0-1